fUST/lending_fUST_20250725
["ID","MTS","AMOUNT","RATE_DAILY","PERIOD"]
[374639381,1753393848993,-151.0,0.00019726,2]
[374639382,1753393849003,-151.0,0.00019726,2]
[374639383,1753393849013,-460.0,0.00019726,2]
[374639384,1753393849023,-702.2,0.00019726,2]
[374639385,1753393849033,-1079.36,0.00019726,2]
[374639386,1753393849042,-620.75,0.00019726,2]
[374639387,1753393849053,-636.63,0.00019726,2]
[374639388,1753393849063,-460.0,0.00019726,2]
[374639389,1753393849073,-460.0,0.00019726,2]
[374639390,1753393849083,-460.0,0.00019726,2]
[374639391,1753393849093,-940.33,0.00019726,2]
[374639392,1753393849103,-151.0,0.00019726,2]
[374639393,1753393849113,-460.0,0.00019726,2]
[374639394,1753393849123,-641.68,0.00019726,2]
[374639395,1753393849132,-535.6,0.00019726,2]
[374639396,1753393849142,-151.0,0.00019726,2]
[374639397,1753393849152,-151.0,0.00019726,2]
[374639398,1753393849162,-2414.09,0.00019726,2]
[374639399,1753393849174,-460.0,0.00019726,2]
[374639400,1753393849185,-2566.89,0.00019726,2]
[374639401,1753393849195,-729.04,0.00019726,2]
[374639402,1753393849205,-460.0,0.00019726,2]
[374639403,1753393849215,-692.46,0.00019726,2]
[374639404,1753393849225,-3080.69,0.00019726,2]
[374639405,1753393849235,-151.0,0.00019726,2]
[374639406,1753393849245,-460.0,0.00019726,2]
[374639407,1753393849255,-460.0,0.00019726,2]
[374639408,1753393849264,-541.83,0.00019726,2]
[374639409,1753393849274,-460.0,0.00019726,2]
[374639410,1753393849283,-7358.0,0.00019726,2]
[374639411,1753393849293,-460.0,0.00019726,2]
[374639412,1753393849303,-460.0,0.00019726,2]
[374639413,1753393849313,-151.0,0.00019726,2]
[374639414,1753393849322,-546.75,0.00019726,2]
[374639415,1753393849332,-1171.94,0.00019726,2]
[374639416,1753393849342,-460.0,0.00019726,2]
[374639417,1753393849352,-2889.93,0.00019726,2]
[374639418,1753393849362,-460.0,0.00019726,2]
[374639419,1753393849372,-300.135724,0.00019726,2]
[374639420,1753393849382,-460.0,0.00019726,2]
[374639421,1753393849391,-460.0,0.00019726,2]
[374639422,1753393849401,-460.0,0.00019726,2]
[374639423,1753393849410,-300.135724,0.00019726,2]
[374639424,1753393849420,-460.0,0.00019726,2]
[374639425,1753393849430,-460.0,0.00019726,2]
[374639426,1753393849440,-460.0,0.00019726,2]
[374639427,1753393849450,-2956.93,0.00019726,2]
[374639428,1753393849462,-650.99,0.00019726,2]
[374639429,1753393849474,-2983.36,0.00019726,2]
[374639430,1753393849485,-460.0,0.00019726,2]
[374639431,1753393849495,-460.0,0.00019726,2]
[374639432,1753393849506,-460.0,0.00019726,2]
[374639433,1753393849516,-2496.37,0.00019726,2]
[374639434,1753393849526,-460.0,0.00019726,2]
[374639435,1753393849538,-460.0,0.00019726,2]
[374639436,1753393849548,-460.0,0.00019726,2]
[374639437,1753393849558,-460.0,0.00019726,2]
[374639438,1753393849568,-2159.03,0.00019726,2]
[374639439,1753393849578,-460.0,0.00019726,2]
[374639440,1753393849588,-1050.97,0.00019726,2]
[374639441,1753393849598,-234.623149,0.00019726,2]
[374639442,1753393849609,-806.93,0.00019726,2]
[374639443,1753393849618,-234.623149,0.00019726,2]
[374639444,1753393849627,-460.0,0.00019726,2]
[374639445,1753393849636,-774.18,0.00019726,2]
[374639446,1753393849646,-896.14,0.00019726,2]
[374639447,1753393849656,-460.0,0.00019726,2]
[374639448,1753393849666,-504.96527413,0.00019726,2]
[374639449,1753393849677,-460.0,0.00019726,2]
[374639450,1753393849688,-460.0,0.00019726,2]
[374639451,1753393849699,-2833.08,0.00019726,2]
[374639452,1753393849711,-463.81,0.00019726,2]
[374639453,1753393849723,-590.55,0.00019726,2]
[374639454,1753393849732,-460.0,0.00019726,2]
[374639455,1753393849741,-460.0,0.00019726,2]
[374639456,1753393849751,-772.14,0.00019726,2]
[374639457,1753393849761,-460.0,0.00019726,2]
[374639458,1753393849773,-460.0,0.00019726,2]
[374639459,1753393849784,-319.58761259,0.00019799,2]
[374639460,1753393849795,-151.0,0.000198,2]
[374639461,1753393849806,-151.0,0.000198,2]
[374639462,1753393849816,-698.68900122,0.0001985,2]
[374639463,1753393849826,-164.0,0.0001989,3]
[374639464,1753393849835,-151.0,0.000199,2]
[374639465,1753393849845,-4096.64072754,0.000199,2]
[374639466,1753393849854,-318.81973455,0.00019973,2]
[374639467,1753393849865,-548.06828774,0.00019973,2]
[374639468,1753393849878,-503.48270501,0.00019973,2]
[374639469,1753393849888,-500.0,0.00019973,2]
[374639470,1753393849898,-500.0,0.00019973,2]
[374639471,1753393849908,-500.0,0.00019973,2]
[374639472,1753393849919,-501.81370368,0.00019973,2]
[374639473,1753393849929,-500.38,0.00019973,2]
[374639474,1753393849939,-500.0,0.00019973,2]
[374639475,1753393849950,-500.0,0.00019973,2]
[374639476,1753393849960,-500.0,0.00019973,2]
[374639477,1753393850045,-500.0,0.00019973,2]
[374639478,1753393850056,-500.0,0.00019973,2]
[374639479,1753393850068,-500.0,0.00019973,2]
[374639480,1753393850080,-500.0,0.00019973,2]
[374639481,1753393850091,-501.487689,0.00019973,2]
[374639482,1753393850102,-500.0,0.00019973,2]
[374639483,1753393850112,-507.58685935,0.00019973,2]
[374639484,1753393850122,-500.0,0.00019973,2]
[374639485,1753393850132,-500.0,0.00019973,2]
[374639486,1753393850143,-500.0,0.00019973,2]
[374639487,1753393850153,-500.0,0.00019973,2]
[374639488,1753393850163,-500.0,0.00019973,2]
[374639489,1753393850175,-500.0,0.00019973,2]
[374639490,1753393850186,-500.0,0.00019973,2]
[374639491,1753393850196,-151.0,0.00019973,2]
[374639492,1753393850206,-151.0,0.00019973,2]
[374639493,1753393850217,-295.215646,0.00019973,2]
[374639494,1753393850226,-151.0,0.00019973,2]
[374639495,1753393850235,-61267.40634832,0.0001999,2]
[374639496,1753393850424,-38732.59365168,0.0001999,2]
[374639497,1753393850435,-151.0,0.0001999,2]
[374639498,1753393850445,-151.0,0.0001999,2]
[374639499,1753393850455,-151.0,0.0001999,2]
[374639500,1753393850469,-151.0,0.0001999,2]
[374639501,1753393850481,-151.0,0.0001999,2]
[374639502,1753393850491,-151.0,0.0001999,2]
[374639503,1753393850501,-151.0,0.0001999,2]
[374639504,1753393850512,-151.0,0.0001999,2]
[374639505,1753393850522,-151.0,0.0001999,2]
[374639506,1753393850531,-232.673817,0.0001999,2]
[374639507,1753393850542,-232.673817,0.0001999,2]
[374639508,1753393850552,-151.0,0.0001999,2]
[374639509,1753393850562,-151.0,0.0001999,2]
[374639510,1753393850572,-168.595389,0.0001999,2]
[374639511,1753393850581,-168.595389,0.0001999,2]
[374639512,1753393850591,-185.714592,0.0001999,2]
[374639513,1753393850600,-171.664458,0.0001999,2]
[374639514,1753393850610,-185.714592,0.0001999,2]
[374639515,1753393850619,-171.664458,0.0001999,2]
[374639516,1753393850628,-151.0,0.0001999,2]
[374639517,1753393850638,-151.0,0.0001999,2]
[374639518,1753393850648,-220.377827,0.0001999,2]
[374639519,1753393850658,-220.377827,0.0001999,2]
[374639520,1753393850668,-152.025872,0.0001999,2]
[374639521,1753393850678,-152.025872,0.0001999,2]
[374639522,1753393850687,-151.0,0.0001999,2]
[374639523,1753393850697,-151.0,0.0001999,2]
[374639524,1753393850707,-151.0,0.0001999,2]
[374639525,1753393850716,-300.135724,0.0001999,2]
[374639526,1753393850726,-300.135724,0.0001999,2]
[374639527,1753393850735,-234.623149,0.0001999,2]
[374639528,1753393850745,-234.623149,0.0001999,2]
[374639529,1753393850755,-2004.01418139,0.0002,3]
[374639530,1753393850765,-13770.23978458,0.0002,2]
[374639531,1753393850775,-16000.0,0.0002,2]
[374639532,1753393850785,-35850.79696441,0.0002,2]
[374639533,1753393850794,-49374.43588962,0.0002,2]
[374639534,1753393850804,-18845.93022391,0.0002,2]
[374639535,1753393851031,-738.6676937,0.00019178,2]
[374639536,1753393851572,-1330.36281741,0.00019178,2]
[374639537,1753393851772,-3745.57948889,0.00019178,2]
[374639538,1753393851783,-460.0,0.00019178,2]
[374639539,1753393851792,-460.0,0.00019178,2]
[374639540,1753393851802,-5814.61,0.00019452,2]
[374639541,1753393851811,-460.0,0.00019452,2]
[374639542,1753393851821,-749.81051111,0.00019726,2]
[374639543,1753393851832,-266.09948889,0.00019726,2]
[374639544,1753393851842,-3964.13198965,0.00019726,2]
[374639545,1753393851854,-1850.47801035,0.00019726,2]
[374639546,1753393851863,-378.8,0.00019726,2]
[374639547,1753393851873,-8851.70554057,0.0002,2]
[374639548,1753393988764,12242.70881933,0.00018978,2]
[374639549,1753393988788,30000.0,0.00018978,2]
[374639550,1753393988811,30000.0,0.00018978,2]
[374639551,1753393988836,30000.0,0.00018978,2]
[374639552,1753393988859,30000.0,0.00018978,2]
[374639553,1753393988883,30000.0,0.00018978,2]
[374639554,1753393988906,30000.0,0.00018978,2]
[374639555,1753393988928,30000.0,0.00018978,2]
[374639556,1753393988951,30000.0,0.00018978,2]
[374639557,1753393988974,30000.0,0.00018978,2]
[374639558,1753394098828,206.67349,0.0001815,2]
[374639561,1753394302519,635.92943378,0.00018334,2]
[374639565,1753394371744,-176.51416251,0.000188,2]
[374639566,1753394371770,-4541.03078391,0.000189,2]
[374639567,1753394371791,-251.66340521,0.000189,2]
[374639568,1753394371812,-300.0,0.00018967,2]
[374639569,1753394371833,-311.12,0.00018968,3]
[374639570,1753394371854,-466.73,0.00018968,3]
[374639571,1753394371875,-500.0,0.00018975,2]
[374639572,1753394371895,-404.38894832,0.00018975,2]
[374639573,1753394371917,-500.0,0.00018975,2]
[374639574,1753394371936,-500.0,0.00018975,2]
[374639575,1753394371958,-205.55270005,0.00018975,2]
[374639579,1753394429974,24900.0,0.00017976,2]
[374639587,1753394647072,291.295596,0.00013699,2]
[374639589,1753394836751,-166.02638693,0.00018868,2]
[374639590,1753394836772,-1200.0,0.00018899,2]
[374639591,1753394836792,-1200.0,0.00018899,2]
[374639592,1753394836813,-300.0,0.00018899,2]
[374639593,1753394836835,-167.77560348,0.000189,2]
[374639594,1753394836862,-735.98874943,0.000189,2]
[374639595,1753394851857,-816.45249656,0.000189,2]
[374639612,1753395032901,-1200.0,0.00018899,2]
[374639613,1753395032912,-150.0,0.000189,2]
[374639614,1753395032923,-4244.06947797,0.000189,2]
[374639615,1753395032933,-300.0,0.00018965,2]
[374639616,1753395032943,-300.0,0.00018965,2]
[374639617,1753395032952,-300.0,0.00018965,2]
[374639618,1753395032962,-300.0,0.00018965,2]
[374639619,1753395032972,-500.0,0.00018966,2]
[374639620,1753395032982,-171.39580695,0.00018966,2]
[374639621,1753395032994,-503.42777523,0.00018966,2]
[374639622,1753395033003,-4193.79783619,0.00018966,2]
[374639623,1753395033015,-3510.72328258,0.00018966,2]
[374639624,1753395033027,-3464.44680709,0.00018966,2]
[374639625,1753395033039,-1085.54040766,0.00018966,2]
[374639626,1753395033051,-37745.49166648,0.00018966,2]
[374639627,1753395033060,-3801.642,0.00018967,2]
[374639628,1753395033070,-215.0738,0.00018967,2]
[374639629,1753395033079,-460.0,0.00018967,2]
[374639630,1753395033088,-460.0,0.00018967,2]
[374639631,1753395033245,-460.0,0.00018967,2]
[374639632,1753395033255,-460.0,0.00018967,2]
[374639633,1753395033265,-460.0,0.00018967,2]
[374639634,1753395033275,-802.45,0.00018967,2]
[374639635,1753395033284,-687.88,0.00018967,2]
[374639636,1753395033294,-720.02,0.00018967,2]
[374639637,1753395033304,-2673.04,0.00018967,2]
[374639638,1753395033314,-7880.53,0.00018967,2]
[374639639,1753395033323,-460.0,0.00018967,2]
[374639640,1753395033333,-460.0,0.00018967,2]
[374639641,1753395033342,-460.0,0.00018967,2]
[374639642,1753395033352,-460.0,0.00018967,2]
[374639643,1753395033362,-750.08,0.00018967,2]
[374639644,1753395033371,-460.0,0.00018967,2]
[374639645,1753395033381,-460.0,0.00018967,2]
[374639646,1753395033390,-2967.65,0.00018967,2]
[374639647,1753395033400,-460.0,0.00018967,2]
[374639648,1753395033409,-460.0,0.00018967,2]
[374639649,1753395033418,-3518.02,0.00018967,2]
[374639650,1753395033428,-460.0,0.00018967,2]
[374639651,1753395033437,-460.0,0.00018967,2]
[374639652,1753395033447,-460.0,0.00018967,2]
[374639653,1753395033456,-515.76,0.00018967,2]
[374639654,1753395033466,-460.0,0.00018967,2]
[374639655,1753395033477,-460.0,0.00018967,2]
[374639656,1753395033487,-460.0,0.00018967,2]
[374639657,1753395033497,-161.56,0.00018968,3]
[374639658,1753395033507,-484.73,0.00018968,3]
[374639659,1753395033516,-664.86,0.00018972,2]
[374639660,1753395033526,-460.0,0.00018972,2]
[374639661,1753395033536,-2329.8,0.00018972,2]
[374639662,1753395033546,-460.0,0.00018972,2]
[374639663,1753395033555,-971.29,0.00018972,2]
[374639664,1753395033564,-460.0,0.00018972,2]
[374639665,1753395033574,-25.93743619,0.00018972,2]
[374639666,1753395033587,-434.06256381,0.00018972,2]
[374639667,1753395033597,-460.0,0.00018972,2]
[374639668,1753395033608,-765.71,0.00018972,2]
[374639669,1753395033617,-259.20121904,0.00018972,2]
[374639694,1753395038631,-293.999998,0.00018965,2]
[374639701,1753395038688,-206.000002,0.00018965,2]
[374639703,1753395038699,-500.0,0.00018965,2]
[374639705,1753395038709,-500.0,0.00018965,2]
[374639707,1753395038718,-500.0,0.00018965,2]
[374639709,1753395038728,-500.0,0.00018965,2]
[374639711,1753395038738,-500.0,0.00018965,2]
[374639713,1753395038748,-500.0,0.00018965,2]
[374639715,1753395038758,-386.28320355,0.00018965,2]
[374639717,1753395038767,-500.0,0.00018965,2]
[374639719,1753395038777,-500.0,0.00018965,2]
[374639721,1753395038786,-500.0,0.00018965,2]
[374639723,1753395038795,-500.0,0.00018965,2]
[374639725,1753395038805,-500.0,0.00018965,2]
[374639727,1753395038817,-500.0,0.00018965,2]
[374639729,1753395038827,-500.0,0.00018965,2]
[374639731,1753395038837,-500.0,0.00018965,2]
[374639733,1753395038847,-500.0,0.00018965,2]
[374639735,1753395038859,-500.0,0.00018965,2]
[374639737,1753395038870,-406.41308871,0.00018965,2]
[374639739,1753395038881,-500.0,0.00018965,2]
[374639741,1753395038890,-500.0,0.00018965,2]
[374639743,1753395038900,-500.0,0.00018965,2]
[374639745,1753395038910,-500.0,0.00018965,2]
[374639747,1753395038919,-500.0,0.00018965,2]
[374639749,1753395038928,-500.0,0.00018965,2]
[374639751,1753395038938,-500.0,0.00018965,2]
[374639753,1753395038948,-500.0,0.00018965,2]
[374639755,1753395038958,-500.0,0.00018965,2]
[374639757,1753395038967,-500.0,0.00018965,2]
[374639759,1753395038977,-500.0,0.00018965,2]
[374639771,1753395039080,-500.0,0.00018965,2]
[374639773,1753395039089,-500.0,0.00018965,2]
[374639775,1753395039099,-280.81121365,0.00018965,2]
[374639776,1753395039108,-500.0,0.00018965,2]
[374639777,1753395039117,-500.0,0.00018965,2]
[374639778,1753395039127,-500.0,0.00018965,2]
[374639779,1753395039136,-500.0,0.00018965,2]
[374639780,1753395039146,-500.0,0.00018965,2]
[374639781,1753395039156,-500.0,0.00018965,2]
[374639782,1753395039165,-362.39763655,0.00018965,2]
[374639783,1753395039175,-500.0,0.00018965,2]
[374639784,1753395039184,-414.37674318,0.00018965,2]
[374639785,1753395039193,-500.0,0.00018965,2]
[374639786,1753395039203,-500.0,0.00018965,2]
[374639787,1753395039212,-500.0,0.00018965,2]
[374639788,1753395039222,-500.0,0.00018965,2]
[374639789,1753395039231,-500.0,0.00018965,2]
[374639790,1753395039241,-500.0,0.00018965,2]
[374639791,1753395039250,-500.0,0.00018965,2]
[374639792,1753395039260,-500.0,0.00018965,2]
[374639793,1753395039282,-500.0,0.00018965,2]
[374639794,1753395039292,-500.0,0.00018965,2]
[374639795,1753395039301,-500.0,0.00018965,2]
[374639796,1753395039311,-500.0,0.00018965,2]
[374639797,1753395039320,-500.0,0.00018965,2]
[374639798,1753395039330,-500.0,0.00018965,2]
[374639799,1753395039339,-500.0,0.00018965,2]
[374639800,1753395039349,-500.0,0.00018965,2]
[374639801,1753395039359,-500.0,0.00018965,2]
[374639802,1753395039369,-500.0,0.00018965,2]
[374639803,1753395039379,-500.0,0.00018965,2]
[374639804,1753395039388,-500.0,0.00018965,2]
[374639805,1753395039398,-500.0,0.00018965,2]
[374639806,1753395039407,-500.0,0.00018965,2]
[374639807,1753395039417,-500.0,0.00018965,2]
[374639808,1753395039427,-500.0,0.00018965,2]
[374639809,1753395039438,-500.0,0.00018965,2]
[374639810,1753395039448,-500.0,0.00018965,2]
[374639811,1753395039458,-500.0,0.00018965,2]
[374639812,1753395039468,-500.0,0.00018965,2]
[374639813,1753395039478,-500.0,0.00018965,2]
[374639814,1753395039488,-500.0,0.00018965,2]
[374639815,1753395039499,-460.0,0.00018967,2]
[374639816,1753395039509,-959.40878096,0.00018972,2]
[374639817,1753395039518,-460.0,0.00018972,2]
[374639818,1753395039528,-460.0,0.00018972,2]
[374639819,1753395039538,-460.0,0.00018972,2]
[374639820,1753395039547,-460.0,0.00018972,2]
[374639821,1753395039557,-460.0,0.00018972,2]
[374639822,1753395039566,-460.0,0.00018972,2]
[374639823,1753395039577,-458.48255879,0.00018973,2]
[374639824,1753395039586,-319.95244849,0.00018973,2]
[374639825,1753395039597,-500.39073972,0.00018973,2]
[374639826,1753395039607,-500.0,0.00018973,2]
[374639827,1753395039616,-500.87449579,0.00018973,2]
[374639828,1753395039626,-162.11168803,0.00018973,2]
[374639829,1753395039635,-158.11665188,0.00018973,2]
[374639830,1753395039645,-500.0,0.00018973,2]
[374639831,1753395039654,-460.0,0.00018974,2]
[374639832,1753395039663,-460.0,0.00018974,2]
[374639833,1753395039672,-460.0,0.00018974,2]
[374639834,1753395039682,-463.11950371,0.00018974,2]
[374639835,1753395039694,-460.0,0.00018974,2]
[374639836,1753395039704,-460.0,0.00018974,2]
[374639837,1753395039713,-460.0,0.00018974,2]
[374639838,1753395039723,-535.76689433,0.00018974,2]
[374639839,1753395039732,-658.13,0.00018974,2]
[374639840,1753395039742,-410.80514934,0.00018974,2]
[374639841,1753395039752,-460.0,0.00018974,2]
[374639842,1753395039762,-460.0,0.00018974,2]
[374639843,1753395039772,-460.0,0.00018975,2]
[374639844,1753395039781,-460.0,0.00018975,2]
[374639845,1753395039791,-460.0,0.00018975,2]
[374639846,1753395039801,-460.0,0.00018975,2]
[374639847,1753395039813,-587.90039459,0.00018975,2]
[374639848,1753395039823,-597.05,0.00018975,2]
[374639849,1753395039832,-460.0,0.00018975,2]
[374639850,1753395039842,-461.28928091,0.00018975,2]
[374639851,1753395039853,-460.0,0.00018975,2]
[374639852,1753395039862,-460.0,0.00018975,2]
[374639853,1753395039872,-933.43,0.00018975,2]
[374639854,1753395039882,-460.0,0.00018975,2]
[374639855,1753395039892,-1978.46244123,0.00018975,2]
[374639858,1753395040084,-1226.78755877,0.00018975,2]
[374639859,1753395040094,-460.0,0.00018975,2]
[374639860,1753395040104,-460.0,0.00018975,2]
[374639861,1753395040114,-460.0,0.00018975,2]
[374639862,1753395040124,-665.6,0.00018975,2]
[374639863,1753395040134,-1146.49,0.00018975,2]
[374639864,1753395040144,-460.0,0.00018975,2]
[374639865,1753395040154,-460.0,0.00018975,2]
[374639866,1753395040166,-460.0,0.00018975,2]
[374639867,1753395040175,-460.0,0.00018975,2]
[374639868,1753395040185,-460.0,0.00018975,2]
[374639869,1753395040195,-460.0,0.00018975,2]
[374639871,1753395040205,-460.0,0.00018975,2]
[374639872,1753395040215,-460.0,0.00018975,2]
[374639873,1753395040224,-2977.61,0.00018975,2]
[374639874,1753395040234,-460.0,0.00018975,2]
[374639875,1753395040244,-460.0,0.00018975,2]
[374639876,1753395040253,-1059.84,0.00018975,2]
[374639878,1753395040263,-3675.2,0.00018975,2]
[374639879,1753395040274,-460.0,0.00018975,2]
[374639880,1753395040284,-462.97622952,0.00018975,2]
[374639881,1753395040295,-512.05339899,0.00018975,2]
[374639882,1753395040305,-460.0,0.00018975,2]
[374639883,1753395040314,-460.0,0.00018975,2]
[374639884,1753395040324,-1274.26,0.00018975,2]
[374639885,1753395040334,-460.0,0.00018975,2]
[374639886,1753395040344,-460.0,0.00018975,2]
[374639887,1753395040354,-3003.95,0.00018975,2]
[374639888,1753395040364,-460.0,0.00018975,2]
[374639889,1753395040373,-616.11,0.00018975,2]
[374639890,1753395040383,-460.0,0.00018975,2]
[374639891,1753395040392,-345.70349381,0.00018975,2]
[374639892,1753395040500,-460.0,0.00018975,2]
[374639893,1753395040512,-366.31249718,0.00018975,2]
[374639894,1753395040522,-460.0,0.00018975,2]
[374639895,1753395040532,-460.0,0.00018975,2]
[374639896,1753395040542,-460.0,0.00018975,2]
[374639897,1753395040552,-530.46,0.00018976,2]
[374639898,1753395040561,-928.22,0.00018976,2]
[374639899,1753395040571,-3249.43,0.00018976,2]
[374639900,1753395040581,-460.0,0.00018976,2]
[374639901,1753395040591,-2256.58,0.00018976,2]
[374639902,1753395040601,-460.0,0.00018976,2]
[374639903,1753395040611,-1014.63,0.00018976,2]
[374639904,1753395040621,-87757.29118067,0.00018978,2]
[374639905,1753395040631,-3942.302754,0.00019022,2]
[374639906,1753395040641,-4088.1679559,0.00019077,2]
[374639907,1753395040651,-2496.04347521,0.00019078,2]
[374639908,1753395040662,-289.76,0.00019097,3]
[374639909,1753395040672,-869.28,0.00019097,3]
[374639910,1753395040682,-4244.06947772,0.00019107,2]
[374639911,1753395040692,-4239.43017027,0.00019132,2]
[374639912,1753395040702,-25000.0,0.00019166,2]
[374639913,1753395040711,-151.0,0.00019166,2]
[374639914,1753395040721,-151.0,0.00019166,2]
[374639915,1753395040731,-151.0,0.00019166,2]
[374639916,1753395040741,-11567.37448202,0.00019166,2]
[374639917,1753395040751,-151.0,0.00019166,2]
[374639918,1753395040761,-151.0,0.00019166,2]
[374639919,1753395040771,-151.0,0.00019166,2]
[374639920,1753395040781,-151.0,0.00019166,2]
[374639921,1753395040791,-151.0,0.00019166,2]
[374639922,1753395040801,-151.0,0.00019166,2]
[374639923,1753395040813,-151.0,0.00019166,2]
[374639924,1753395040822,-151.0,0.00019166,2]
[374639925,1753395040832,-151.0,0.00019166,2]
[374639926,1753395040842,-198.0,0.00019166,2]
[374639927,1753395040853,-151.0,0.00019166,2]
[374639928,1753395040863,-151.0,0.00019166,2]
[374639929,1753395040873,-151.0,0.00019166,2]
[374639930,1753395040883,-151.0,0.00019166,2]
[374639931,1753395040893,-151.0,0.00019166,2]
[374639932,1753395040903,-151.0,0.00019166,2]
[374639933,1753395040913,-151.0,0.00019166,2]
[374639934,1753395040923,-151.0,0.00019166,2]
[374639935,1753395040932,-151.0,0.00019166,2]
[374639936,1753395040942,-151.0,0.00019166,2]
[374639937,1753395040951,-151.0,0.00019166,2]
[374639938,1753395040961,-151.0,0.00019166,2]
[374639939,1753395040971,-151.0,0.00019166,2]
[374639940,1753395040980,-500.0,0.00019166,2]
[374639941,1753395040990,-151.0,0.00019166,2]
[374639942,1753395041000,-151.0,0.00019166,2]
[374639943,1753395041010,-500.0,0.00019166,2]
[374639944,1753395041020,-151.0,0.00019166,2]
[374639945,1753395041029,-500.0,0.00019166,2]
[374639947,1753395041039,-500.0,0.00019166,2]
[374639948,1753395041048,-151.0,0.00019166,2]
[374639951,1753395041059,-500.0,0.00019166,2]
[374639952,1753395041070,-151.0,0.00019166,2]
[374639955,1753395041079,-500.0,0.00019166,2]
[374639956,1753395041091,-151.0,0.00019166,2]
[374639958,1753395041100,-500.0,0.00019166,2]
[374639960,1753395041110,-151.0,0.00019166,2]
[374639962,1753395041119,-151.0,0.00019166,2]
[374639964,1753395041129,-151.0,0.00019166,2]
[374639966,1753395041138,-151.0,0.00019166,2]
[374639968,1753395041148,-500.0,0.00019166,2]
[374639970,1753395041158,-151.0,0.00019166,2]
[374639972,1753395041167,-151.0,0.00019166,2]
[374639974,1753395041176,-500.0,0.00019166,2]
[374639976,1753395041186,-151.0,0.00019166,2]
[374639978,1753395041196,-151.0,0.00019166,2]
[374639980,1753395041205,-500.0,0.00019166,2]
[374639982,1753395041214,-151.0,0.00019166,2]
[374639984,1753395041224,-151.0,0.00019166,2]
[374639986,1753395041233,-151.0,0.00019166,2]
[374639989,1753395041248,-500.0,0.00019166,2]
[374639992,1753395041265,-500.0,0.00019166,2]
[374639994,1753395041279,-151.0,0.00019166,2]
[374639997,1753395041294,-151.0,0.00019166,2]
[374640000,1753395041311,-633.50093138,0.00019166,2]
[374640003,1753395041327,-151.0,0.00019166,2]
[374640005,1753395041343,-151.0,0.00019166,2]
[374640008,1753395041360,-159.14150464,0.00019166,2]
[374640010,1753395041375,-151.0,0.00019166,2]
[374640013,1753395041388,-151.0,0.00019166,2]
[374640016,1753395041405,-151.0,0.00019166,2]
[374640018,1753395041420,-151.0,0.00019166,2]
[374640020,1753395041433,-151.0,0.00019166,2]
[374640023,1753395041448,-151.0,0.00019166,2]
[374640026,1753395041462,-151.0,0.00019166,2]
[374640028,1753395041479,-151.0,0.00019166,2]
[374640031,1753395041496,-151.0,0.00019166,2]
[374640034,1753395041513,-151.0,0.00019166,2]
[374640036,1753395041525,-151.0,0.00019166,2]
[374640038,1753395041537,-151.0,0.00019166,2]
[374640041,1753395041554,-548.06828774,0.00019173,2]
[374640044,1753395041569,-503.48270501,0.00019173,2]